Workbook

Sheet RIVN_DCF
B2: Company Name | C2: Rivian Automotive
B3: Ticker | C3: RIVN
B4: Share Price | C4: 14.68
B5: Valuation Date | C5: 2025-09-30
B7: =C2&" ("&C3&") DISCOUNTED CASH FLOWS MODEL" -> Rivian Automotive (RIVN) DISCOUNTED CASH FLOWS MODEL
B8: Fiscal year ends in December USD in millions except per share data.
A10: x | B10: FORECASTING CASH FLOWS
B12: Cost of Revenues: Software Service | F12: Historical | K12: Projected
F14: 2020 | G14: =F14+1 -> 2021 | H14: 2022 | I14: 2023 | J14: 2024 | K14: 2025 | L14: 2026 | M14: 2027 | N14: 2028 | O14: 2029 | P14: =O14+1 -> 2030 | Q14: =P14+1 -> 2031 | R14: =Q14+1 -> 2032 | S14: =R14+1 -> 2033 | T14: =S14+1 -> 2034 | U14: 2035 | V14: 2036 | W14: 2037
B15: Revenues: Automotive | F15: =INDEX(RIVN_IS!$A$14:$G$55,MATCH(RIVN_DCF!$B15,RIVN_IS!$A$14:$A$55,0),MATCH(RIVN_DCF!F$14,RIVN_IS!$A$14:$G$14,0)) -> - | G15: =INDEX(RIVN_IS!$A$14:$G$55,MATCH(RIVN_DCF!$B15,RIVN_IS!$A$14:$A$55,0),MATCH(RIVN_DCF!G$14,RIVN_IS!$A$14:$G$14,0)) -> 0 | H15: =INDEX(RIVN_IS!$A$14:$G$55,MATCH(RIVN_DCF!$B15,RIVN_IS!$A$14:$A$55,0),MATCH(RIVN_DCF!H$14,RIVN_IS!$A$14:$G$14,0)) -> 1554 | I15: =INDEX(RIVN_IS!$A$14:$G$55,MATCH(RIVN_DCF!$B15,RIVN_IS!$A$14:$A$55,0),MATCH(RIVN_DCF!I$14,RIVN_IS!$A$14:$G$14,0)) -> 4132 | J15: =INDEX(RIVN_IS!$A$14:$G$55,MATCH(RIVN_DCF!$B15,RIVN_IS!$A$14:$A$55,0),MATCH(RIVN_DCF!J$14,RIVN_IS!$A$14:$G$14,0)) -> 4486 | K15: =J15*(1+K37) -> 3647.492601 | L15: 5614.383986 | M15: 7999.013562 | N15: 12292.70203 | O15: 16150.97331 | P15: 20164.09354 | Q15: 23519.04929 | R15: 26970.66663 | S15: 30557.76529 | T15: 34621.94807 | U15: 38084.14288 | V15: 41130.87431 | W15: 43187.41802
B16: Revenues: Software Service | F16: =INDEX(RIVN_IS!$A$14:$G$55,MATCH(RIVN_DCF!$B16,RIVN_IS!$A$14:$A$55,0),MATCH(RIVN_DCF!F$14,RIVN_IS!$A$14:$G$14,0)) -> - | G16: =INDEX(RIVN_IS!$A$14:$G$55,MATCH(RIVN_DCF!$B16,RIVN_IS!$A$14:$A$55,0),MATCH(RIVN_DCF!G$14,RIVN_IS!$A$14:$G$14,0)) -> - | H16: =INDEX(RIVN_IS!$A$14:$G$55,MATCH(RIVN_DCF!$B16,RIVN_IS!$A$14:$A$55,0),MATCH(RIVN_DCF!H$14,RIVN_IS!$A$14:$G$14,0)) -> 104 | I16: =INDEX(RIVN_IS!$A$14:$G$55,MATCH(RIVN_DCF!$B16,RIVN_IS!$A$14:$A$55,0),MATCH(RIVN_DCF!I$14,RIVN_IS!$A$14:$G$14,0)) -> 302 | J16: =INDEX(RIVN_IS!$A$14:$G$55,MATCH(RIVN_DCF!$B16,RIVN_IS!$A$14:$A$55,0),MATCH(RIVN_DCF!J$14,RIVN_IS!$A$14:$G$14,0)) -> 484 | K16: =J16*(1+K38) -> 1388 | L16: 2082 | M16: 3123 | N16: 4684.5 | O16: 6558.3 | P16: 8525.79 | Q16: 10657.2375 | R16: 13321.54688 | S16: 16651.93359 | T16: 20814.91699 | U16: 24977.90039 | V16: 29973.48047 | W16: 35968.17656
B17: Total Revenues | F17: =INDEX(RIVN_IS!$A$14:$G$55,MATCH(RIVN_DCF!$B17,RIVN_IS!$A$14:$A$55,0),MATCH(RIVN_DCF!F$14,RIVN_IS!$A$14:$G$14,0)) -> 0 | G17: =INDEX(RIVN_IS!$A$14:$G$55,MATCH(RIVN_DCF!$B17,RIVN_IS!$A$14:$A$55,0),MATCH(RIVN_DCF!G$14,RIVN_IS!$A$14:$G$14,0)) -> 55 | H17: =INDEX(RIVN_IS!$A$14:$G$55,MATCH(RIVN_DCF!$B17,RIVN_IS!$A$14:$A$55,0),MATCH(RIVN_DCF!H$14,RIVN_IS!$A$14:$G$14,0)) -> 1658 | I17: =INDEX(RIVN_IS!$A$14:$G$55,MATCH(RIVN_DCF!$B17,RIVN_IS!$A$14:$A$55,0),MATCH(RIVN_DCF!I$14,RIVN_IS!$A$14:$G$14,0)) -> 4434 | J17: =INDEX(RIVN_IS!$A$14:$G$55,MATCH(RIVN_DCF!$B17,RIVN_IS!$A$14:$A$55,0),MATCH(RIVN_DCF!J$14,RIVN_IS!$A$14:$G$14,0)) -> 4970 | K17: =K16+K15 -> 5035.492601 | L17: =L16+L15 -> 7696.383986 | M17: 11122.01356 | N17: 16977.20203 | O17: 22709.27331 | P17: 28689.88354 | Q17: 34176.28679 | R17: 40292.2135 | S17: 47209.69888 | T17: 55436.86506 | U17: 63062.04327 | V17: 71104.35478 | W17: 79155.59459
B18: Cost of Revenues: Automotive | F18: =INDEX(RIVN_IS!$A$14:$G$55,MATCH(RIVN_DCF!$B18,RIVN_IS!$A$14:$A$55,0),MATCH(RIVN_DCF!F$14,RIVN_IS!$A$14:$G$14,0)) -> 0 | G18: =INDEX(RIVN_IS!$A$14:$G$55,MATCH(RIVN_DCF!$B18,RIVN_IS!$A$14:$A$55,0),MATCH(RIVN_DCF!G$14,RIVN_IS!$A$14:$G$14,0)) -> 520 | H18: =INDEX(RIVN_IS!$A$14:$G$55,MATCH(RIVN_DCF!$B18,RIVN_IS!$A$14:$A$55,0),MATCH(RIVN_DCF!H$14,RIVN_IS!$A$14:$G$14,0)) -> 4666 | I18: =INDEX(RIVN_IS!$A$14:$G$55,MATCH(RIVN_DCF!$B18,RIVN_IS!$A$14:$A$55,0),MATCH(RIVN_DCF!I$14,RIVN_IS!$A$14:$G$14,0)) -> 6150 | J18: =INDEX(RIVN_IS!$A$14:$G$55,MATCH(RIVN_DCF!$B18,RIVN_IS!$A$14:$A$55,0),MATCH(RIVN_DCF!J$14,RIVN_IS!$A$14:$G$14,0)) -> 5693 | K18: =K15*K40 -> 4012.241861 | L18: 5052.945587 | M18: 6799.161527 | N18: 10448.79672 | O18: 12920.77864 | P18: 16131.27483 | Q18: 18815.23943 | R18: 21576.5333 | S18: 24446.21223 | T18: 27697.55846 | U18: 30467.3143 | V18: 32904.69945 | W18: 34549.93442
B19: Cost of Revenues: Software Service | F19: =INDEX(RIVN_IS!$A$14:$G$55,MATCH(RIVN_DCF!$B19,RIVN_IS!$A$14:$A$55,0),MATCH(RIVN_DCF!F$14,RIVN_IS!$A$14:$G$14,0)) -> 0 | G19: =INDEX(RIVN_IS!$A$14:$G$55,MATCH(RIVN_DCF!$B19,RIVN_IS!$A$14:$A$55,0),MATCH(RIVN_DCF!G$14,RIVN_IS!$A$14:$G$14,0)) -> 0 | H19: =INDEX(RIVN_IS!$A$14:$G$55,MATCH(RIVN_DCF!$B19,RIVN_IS!$A$14:$A$55,0),MATCH(RIVN_DCF!H$14,RIVN_IS!$A$14:$G$14,0)) -> 115 | I19: =INDEX(RIVN_IS!$A$14:$G$55,MATCH(RIVN_DCF!$B19,RIVN_IS!$A$14:$A$55,0),MATCH(RIVN_DCF!I$14,RIVN_IS!$A$14:$G$14,0)) -> 314 | J19: =INDEX(RIVN_IS!$A$14:$G$55,MATCH(RIVN_DCF!$B19,RIVN_IS!$A$14:$A$55,0),MATCH(RIVN_DCF!J$14,RIVN_IS!$A$14:$G$14,0)) -> 477 | K19: =K16*K41 -> 1110.4 | L19: 1457.4 | M19: 2186.1 | N19: 3044.925 | O19: 3934.98 | P19: 5115.474 | Q19: 6394.3425 | R19: 7992.928125 | S19: 9991.160156 | T19: 12488.9502 | U19: 14986.74023 | V19: 17984.08828 | W19: 21580.90594
B20: Gross Profit | F20: =F17-F18-F19 -> 0 | G20: -465 | H20: -3123 | I20: -2030 | J20: -1200 | K20: -87.14926012 | L20: 1186.038399 | M20: 2136.752034 | N20: 3483.480304 | O20: 5853.514661 | P20: 7443.134708 | Q20: 8966.704858 | R20: 10722.75208 | S20: 12772.32649 | T20: 15250.35641 | U20: 17607.98873 | V20: 20215.56705 | W20: 23024.75423
B22: Selling, General and Administrative | F22: =INDEX(RIVN_IS!$A$14:$G$55,MATCH(RIVN_DCF!$B22,RIVN_IS!$A$14:$A$55,0),MATCH(RIVN_DCF!F$14,RIVN_IS!$A$14:$G$14,0)) -> 255 | G22: =INDEX(RIVN_IS!$A$14:$G$55,MATCH(RIVN_DCF!$B22,RIVN_IS!$A$14:$A$55,0),MATCH(RIVN_DCF!G$14,RIVN_IS!$A$14:$G$14,0)) -> 1242 | H22: =INDEX(RIVN_IS!$A$14:$G$55,MATCH(RIVN_DCF!$B22,RIVN_IS!$A$14:$A$55,0),MATCH(RIVN_DCF!H$14,RIVN_IS!$A$14:$G$14,0)) -> 1789 | I22: =INDEX(RIVN_IS!$A$14:$G$55,MATCH(RIVN_DCF!$B22,RIVN_IS!$A$14:$A$55,0),MATCH(RIVN_DCF!I$14,RIVN_IS!$A$14:$G$14,0)) -> 1714 | J22: =INDEX(RIVN_IS!$A$14:$G$55,MATCH(RIVN_DCF!$B22,RIVN_IS!$A$14:$A$55,0),MATCH(RIVN_DCF!J$14,RIVN_IS!$A$14:$G$14,0)) -> 1876 | K22: =K17*K42 -> 1913.487188 | L22: 2308.915196 | M22: 2780.50339 | N22: 3395.440405 | O22: 3406.390996 | P22: 3944.858987 | Q22: 4272.035848 | R22: 4532.874019 | S22: 4720.969888 | T22: 4850.725693 | U22: 4729.653245 | V22: 4444.022173 | W22: 3957.779729
B23: Research and Development | F23: =INDEX(RIVN_IS!$A$14:$G$55,MATCH(RIVN_DCF!$B23,RIVN_IS!$A$14:$A$55,0),MATCH(RIVN_DCF!F$14,RIVN_IS!$A$14:$G$14,0)) -> 766 | G23: =INDEX(RIVN_IS!$A$14:$G$55,MATCH(RIVN_DCF!$B23,RIVN_IS!$A$14:$A$55,0),MATCH(RIVN_DCF!G$14,RIVN_IS!$A$14:$G$14,0)) -> 1850 | H23: =INDEX(RIVN_IS!$A$14:$G$55,MATCH(RIVN_DCF!$B23,RIVN_IS!$A$14:$A$55,0),MATCH(RIVN_DCF!H$14,RIVN_IS!$A$14:$G$14,0)) -> 1944 | I23: =INDEX(RIVN_IS!$A$14:$G$55,MATCH(RIVN_DCF!$B23,RIVN_IS!$A$14:$A$55,0),MATCH(RIVN_DCF!I$14,RIVN_IS!$A$14:$G$14,0)) -> 1995 | J23: =INDEX(RIVN_IS!$A$14:$G$55,MATCH(RIVN_DCF!$B23,RIVN_IS!$A$14:$A$55,0),MATCH(RIVN_DCF!J$14,RIVN_IS!$A$14:$G$14,0)) -> 1613 | K23: =K17*K43 -> 1611.357632 | L23: 1924.095997 | M23: 2224.402712 | N23: 3395.440405 | O23: 2270.927331 | P23: 2725.538936 | Q23: 3075.865811 | R23: 3424.838148 | S23: 3776.77591 | T23: 4157.76488 | U23: 4414.343029 | V23: 4621.78306 | W23: 4749.335675
B24: EBIT | F24: =F20-F22-F23 -> -1021 | G24: =G20-G22-G23 -> -3557 | H24: -6856 | I24: -5739 | J24: -4689 | K24: -3611.994081 | L24: -3046.972794 | M24: =M20-M22-M23 -> -2868.154068 | N24: =N20-N22-N23 -> -3307.400506 | O24: =O20-O22-O23 -> 176.1963347 | P24: =P20-P22-P23 -> 772.7367849 | Q24: =Q20-Q22-Q23 -> 1618.803198 | R24: =R20-R22-R23 -> 2765.039909 | S24: =S20-S22-S23 -> 4274.580696 | T24: =T20-T22-T23 -> 6241.865838 | U24: 8463.992458 | V24: 11149.76182 | W24: 14317.63883
B25: NOL carryforward balance | I25: 12650 | J25: =14552+739 -> 15291 | K25: =IF(K24<0,J25-K24*0.9,J25-MIN(0.8*K24,J25)) -> 18541.79467 | L25: =IF(L24<0,K25-L24*0.9,K25-MIN(0.8*L24,K25)) -> 21284.07019 | M25: 23865.40885 | N25: 26842.0693 | O25: 26701.11224 | P25: 26082.92281 | Q25: 24787.88025 | R25: 22575.84832 | S25: 19156.18377 | T25: 14162.6911 | U25: 7391.497129 | V25: 0 | W25: 0
B26: Taxes | C26: 0.25 | K26: =IF(K24<0,0,IF(J25>K24,K24*0.2*$C$26,(K24-J25)*$C$26)) -> 0 | L26: =IF(L24<0,0,IF(K25>L24,L24*0.2*$C$26,(L24-K25)*$C$26)) -> 0 | M26: 0 | N26: 0 | O26: 8.809816736 | P26: 38.63683925 | Q26: 80.94015991 | R26: 138.2519954 | S26: 213.7290348 | T26: 312.0932919 | U26: 423.1996229 | V26: 939.5661714 | W26: =IF(W24<0,0,IF(V25>W24,W24*0.2*$C$26,(W24-V25)*$C$26)) -> 3579.409706
B27: Tax-effected EBIT | F27: =F24-F26 -> -1021 | G27: =G24-G26 -> -3557 | H27: -6856 | I27: -5739 | J27: =J24-J26 -> -4689 | K27: =K24-K26 -> -3611.994081 | L27: =L24-L26 -> -3046.972794 | M27: =M24-M26 -> -2868.154068 | N27: -3307.400506 | O27: 167.386518 | P27: 734.0999457 | Q27: 1537.863038 | R27: 2626.787913 | S27: 4060.851662 | T27: 5929.772546 | U27: 8040.792835 | V27: 10210.19564 | W27: 10738.22912
B29: Depreciation and amortization | F29: =INDEX(RIVN_IS!$A$14:$G$55,MATCH(RIVN_DCF!$B29,RIVN_IS!$A$14:$A$55,0),MATCH(RIVN_DCF!F$14,RIVN_IS!$A$14:$G$14,0)) -> 29 | G29: =INDEX(RIVN_IS!$A$14:$G$55,MATCH(RIVN_DCF!$B29,RIVN_IS!$A$14:$A$55,0),MATCH(RIVN_DCF!G$14,RIVN_IS!$A$14:$G$14,0)) -> 197 | H29: =INDEX(RIVN_IS!$A$14:$G$55,MATCH(RIVN_DCF!$B29,RIVN_IS!$A$14:$A$55,0),MATCH(RIVN_DCF!H$14,RIVN_IS!$A$14:$G$14,0)) -> 652 | I29: =INDEX(RIVN_IS!$A$14:$G$55,MATCH(RIVN_DCF!$B29,RIVN_IS!$A$14:$A$55,0),MATCH(RIVN_DCF!I$14,RIVN_IS!$A$14:$G$14,0)) -> 937 | J29: =INDEX(RIVN_IS!$A$14:$G$55,MATCH(RIVN_DCF!$B29,RIVN_IS!$A$14:$A$55,0),MATCH(RIVN_DCF!J$14,RIVN_IS!$A$14:$G$14,0)) -> 1031 | K29: =-K30*K45 -> 1699.478753 | L29: =-L30*L45 -> 2078.023676 | M29: =-M30*M45 -> 3336.604068 | N29: 3734.984446 | O29: 3548.323954 | P29: 4130.89495 | Q29: 4517.67791 | R29: 4869.691741 | S29: 5193.066877 | T29: 5522.031481 | U29: 5655.877006 | V29: 5705.013465 | W29: 5639.836114
B30: Capex | F30: =INDEX(RIVN_IS!$A$14:$G$55,MATCH(RIVN_DCF!$B30,RIVN_IS!$A$14:$A$55,0),MATCH(RIVN_DCF!F$14,RIVN_IS!$A$14:$G$14,0)) -> -914 | G30: =INDEX(RIVN_IS!$A$14:$G$55,MATCH(RIVN_DCF!$B30,RIVN_IS!$A$14:$A$55,0),MATCH(RIVN_DCF!G$14,RIVN_IS!$A$14:$G$14,0)) -> -1794 | H30: =INDEX(RIVN_IS!$A$14:$G$55,MATCH(RIVN_DCF!$B30,RIVN_IS!$A$14:$A$55,0),MATCH(RIVN_DCF!H$14,RIVN_IS!$A$14:$G$14,0)) -> -1369 | I30: =INDEX(RIVN_IS!$A$14:$G$55,MATCH(RIVN_DCF!$B30,RIVN_IS!$A$14:$A$55,0),MATCH(RIVN_DCF!I$14,RIVN_IS!$A$14:$G$14,0)) -> -1026 | J30: =INDEX(RIVN_IS!$A$14:$G$55,MATCH(RIVN_DCF!$B30,RIVN_IS!$A$14:$A$55,0),MATCH(RIVN_DCF!J$14,RIVN_IS!$A$14:$G$14,0)) -> -1141 | K30: =-K44*K17 -> -1888.309725 | L30: -2308.915196 | M30: -3336.604068 | N30: -3395.440405 | O30: -2838.659163 | P30: -3406.92367 | Q30: -3844.832264 | R30: -4281.047684 | S30: -4720.969888 | T30: -5197.2061 | U30: -5517.928786 | V30: -5777.228826 | W30: -5936.669594
B31: Change in Net Working Capital | G31: =-G83 -> 313 | H31: -47 | I31: -1340 | J31: -186 | K31: -23.32389018 | L31: -399.1337077 | M31: =-M83 -> -513.8444363 | N31: -878.2782696 | O31: -733.6480625 | P31: -704.477681 | Q31: -572.132191 | R31: -591.6112645 | S31: -621.6248048 | T31: -697.5599496 | U31: =-U83 -> -539.2594391 | V31: -498.5659744 | W31: =-W83 -> -410.0997877
B32: Unlevered free cash flows | F32: =SUM(F27:F31) -> -1906 | G32: -4841 | H32: -7620 | I32: -7168 | J32: -4985 | K32: -3824.148944 | L32: =SUM(L27:L31) -> -3676.998021 | M32: -3381.998505 | N32: -3846.134736 | O32: 143.4032463 | P32: 753.5935446 | Q32: 1638.576493 | R32: 2623.820705 | S32: 3911.323846 | T32: 5557.037978 | U32: 7639.481615 | V32: 9639.414309 | W32: 10031.29585
F34: Historical | K34: Projected
F35: =F14 -> 2020 | G35: =F35+1 -> 2021 | H35: 2022 | I35: 2023 | J35: 2024 | K35: 2025 | L35: 2026 | M35: 2027 | N35: 2028 | O35: 2029 | P35: =O35+1 -> 2030 | Q35: =P35+1 -> 2031 | R35: =Q35+1 -> 2032 | S35: =R35+1 -> 2033 | T35: =S35+1 -> 2034 | U35: 2035 | V35: 2036 | W35: 2037
B36: Assumptions
B37: Automotive Growth | G37: =IFERROR(G15/F15-1,0) -> 0 | H37: 0 | I37: 1.658944659 | J37: 0.08567279768 | K37: -0.1869164955 | L37: 0.5392447909 | M37: 0.4247357468 | N37: 0.5367772452 | O37: 0.3138668188 | P37: 0.2484754423 | Q37: 0.1663826712 | R37: 0.14675837 | S37: 0.133 | T37: 0.133 | U37: 0.1 | V37: 0.08 | W37: 0.05 | Y37: Step
B38: Software Services Growth | G38: 0 | H38: 0 | I38: 1.903846154 | J38: 0.6026490066 | K38: 1.867768595 | L38: 0.5 | M38: 0.5 | N38: 0.5 | O38: 0.4 | P38: 0.3 | Q38: 0.25 | R38: 0.25 | S38: 0.25 | T38: 0.25 | U38: 0.2 | V38: 0.2 | W38: 0.2 | Y38: Step
B39: Total Revenue Growth | G39: 0 | H39: 29.14545455 | I39: 1.674306393 | J39: 0.1208840776 | Y39: Step
B40: COGS-Automotive (as a % of Automotive) | F40: =IFERROR(F18/F15,0) -> 0 | G40: 0 | H40: 3.002574003 | I40: 1.488383349 | J40: 1.269059296 | K40: 1.1 | L40: 0.9 | M40: 0.85 | N40: 0.85 | O40: 0.8 | P40: 0.8 | Q40: 0.8 | R40: 0.8 | S40: 0.8 | T40: 0.8 | U40: 0.8 | V40: 0.8 | W40: 0.8 | Y40: Step
B41: COGS-Software Services (as a % of Software) | F41: 0 | G41: 0 | H41: 1.105769231 | I41: 1.039735099 | J41: 0.9855371901 | K41: 0.8 | L41: 0.7 | M41: 0.7 | N41: 0.65 | O41: 0.6 | P41: 0.6 | Q41: 0.6 | R41: 0.6 | S41: 0.6 | T41: 0.6 | U41: 0.6 | V41: 0.6 | W41: 0.6 | Y41: Step
B42: SGA (as a % of total revenue) | F42: =IFERROR(F22/F17,0) -> 0 | G42: =IFERROR(G22/G17,0) -> 22.58181818 | H42: =IFERROR(H22/H17,0) -> 1.079010856 | I42: =IFERROR(I22/I17,0) -> 0.3865584123 | J42: =IFERROR(J22/J17,0) -> 0.3774647887 | K42: 0.38 | L42: 0.3 | M42: 0.25 | N42: 0.2 | O42: 0.15 | P42: =O42+$AA42 -> 0.1375 | Q42: 0.125 | R42: 0.1125 | S42: 0.1 | T42: 0.0875 | U42: 0.075 | V42: 0.0625 | W42: 0.05 | Y42: Step | Z42: 0.05 | AA42: =(Z42-O42)/($W$35-$O$35) -> -0.0125
B43: R&D (as a % of total revenue) | F43: =IFERROR(F23/F17,0) -> 0 | G43: =IFERROR(G23/G17,0) -> 33.63636364 | H43: =IFERROR(H23/H17,0) -> 1.172496984 | I43: =IFERROR(I23/I17,0) -> 0.449932341 | J43: =IFERROR(J23/J17,0) -> 0.3245472837 | K43: 0.32 | L43: 0.25 | M43: 0.2 | N43: 0.2 | O43: 0.1 | P43: 0.095 | Q43: 0.09 | R43: 0.085 | S43: 0.08 | T43: 0.075 | U43: 0.07 | V43: 0.065 | W43: 0.06 | Y43: Step | Z43: 0.06 | AA43: =(Z43-O43)/($W$35-$O$35) -> -0.005
B44: Capex (as a % of total revenue) | F44: =IFERROR(-F30/F17,0) -> 0 | G44: =IFERROR(-G30/G17,0) -> 32.61818182 | H44: =IFERROR(-H30/H17,0) -> 0.8256936068 | I44: =IFERROR(-I30/I17,0) -> 0.2313937754 | J44: =IFERROR(-J30/J17,0) -> 0.2295774648 | K44: 0.375 | L44: 0.3 | M44: 0.3 | N44: 0.2 | O44: 0.125 | P44: 0.11875 | Q44: 0.1125 | R44: 0.10625 | S44: 0.1 | T44: 0.09375 | U44: 0.0875 | V44: 0.08125 | W44: 0.075 | Y44: Step | Z44: 0.075 | AA44: =(Z44-O44)/($W$35-$O$35) -> -0.00625
B45: Depreciation and amortization (as % of capex) | F45: =-F29/F30 -> 0.03172866521 | G45: =-G29/G30 -> 0.1098104794 | H45: =-H29/H30 -> 0.4762600438 | I45: =-I29/I30 -> 0.9132553606 | J45: =-J29/J30 -> 0.9035933392 | K45: 0.9 | L45: 0.9 | M45: 1 | N45: 1.1 | O45: 1.25 | P45: 1.2125 | Q45: 1.175 | R45: 1.1375 | S45: 1.1 | T45: 1.0625 | U45: 1.025 | V45: 0.9875 | W45: 0.95 | Y45: Step | Z45: 0.95 | AA45: =(Z45-O45)/($W$35-$O$35) -> -0.0375
B46: Gross margin
A48: x | B48: TERMINAL VALUE AND EQUITY VALUE PER SHARE
F50: Terminal Value - Perpetuity Growth | K50: Terminal Value - Exit Multiple | P50: Option Drag
F51: Unlevered FCF in terminal year | H51: =W32 -> 10031.29585 | K51: Terminal year EBITDA | N51: =W24+W29 -> 19957.47494 | P51: Implied Equity Value (Using PG)
F52: Terminal growth rate | H52: 0.02 | K52: Terminal year EBITDA multiple | N52: 9.2 | P52: Basic Shares
F53: Terminal value | H53: =(H51*(1+H52))/(H54-H52) -> 137943.4577 | K53: Terminal value | N53: =N52*N51 -> 183608.7694 | P53: Value of Options
F54: WACC - current | H54: =F129 -> 0.09417475204 | K54: WACC - current | N54: =F129 -> 0.09417475204 | P54: Implied Equity Value per Share
F55: PV of Terminal Value | H55: =H53/(1+H54)^(W14-J14) -> 42812.8508 | K55: PV of Terminal Value | N55: =-PV(N54,W14-J14,,N53) -> 56985.77507
P56: Treasury Outstanding Options
F57: PV of Unlevered Free Cash Flows | H57: =NPV(H54,K32:W32) -> 4073.819698 | K57: PV of Unlevered Free Cash Flows | N57: =NPV(N54,K32:W32) -> 4073.819698 | P57: Implied Equity Value
F58: Total Enterprise Value | H58: =H57+H55 -> 46886.67049 | K58: Total Enterprise Value | N58: =N57+N55 -> 61059.59477 | P58: Diluted Shares Outstanding
F59: Net debt + Preferred stock + NCI | H59: =RIVN_BS!G40+RIVN_BS!G42+RIVN_BS!G43-RIVN_BS!G19-RIVN_BS!G20 -> -2780 | K59: Net debt + Preferred stock + NCI | N59: =RIVN_BS!G40+RIVN_BS!G42+RIVN_BS!G43-RIVN_BS!G19-RIVN_BS!G20 -> -2780 | P59: Total Proceeds
F60: Implied Equity Value | H60: =H58-H59 -> 49666.67049 | K60: Implied Equity Value | N60: =N58-N59 -> 63839.59477 | P60: Implied Equity Value per Share
F61: Diluted Shares Outstanding | K61: Diluted Shares Outstanding
F62: Value of Warrants & Convertible debt | K62: Value of Warrants & Convertible debt
F63: Implied Equity Value per Share | K63: Implied Equity Value per Share
A67: x | B67: WORKING CAPITAL SCHEDULE
F70: Historical | K70: Projected
F71: =F14 -> 2020 | G71: =F71+1 -> 2021 | H71: 2022 | I71: 2023 | J71: 2024 | K71: 2025 | L71: 2026 | M71: 2027 | N71: 2028 | O71: 2029 | P71: =O71+1 -> 2030 | Q71: =P71+1 -> 2031 | R71: =Q71+1 -> 2032 | S71: =R71+1 -> 2033 | T71: =S71+1 -> 2034 | U71: 2035 | V71: 2036 | W71: 2037
B72: Total Current Assets | F72: =INDEX(RIVN_BS!$A$14:$G$54,MATCH(RIVN_DCF!$B72,RIVN_BS!$A$14:$A$54,0),MATCH(RIVN_DCF!F$71,RIVN_BS!$A$14:$G$14,)) -> 3016 | G72: =INDEX(RIVN_BS!$A$14:$G$54,MATCH(RIVN_DCF!$B72,RIVN_BS!$A$14:$A$54,0),MATCH(RIVN_DCF!G$71,RIVN_BS!$A$14:$G$14,)) -> 18559 | H72: =INDEX(RIVN_BS!$A$14:$G$54,MATCH(RIVN_DCF!$B72,RIVN_BS!$A$14:$A$54,0),MATCH(RIVN_DCF!H$71,RIVN_BS!$A$14:$G$14,)) -> 13130 | I72: =INDEX(RIVN_BS!$A$14:$G$54,MATCH(RIVN_DCF!$B72,RIVN_BS!$A$14:$A$54,0),MATCH(RIVN_DCF!I$71,RIVN_BS!$A$14:$G$14,)) -> 12313 | J72: =INDEX(RIVN_BS!$A$14:$G$54,MATCH(RIVN_DCF!$B72,RIVN_BS!$A$14:$A$54,0),MATCH(RIVN_DCF!J$71,RIVN_BS!$A$14:$G$14,)) -> 10583
B73: Cash and Cash Equivalents | F73: =INDEX(RIVN_BS!$A$14:$G$54,MATCH(RIVN_DCF!$B73,RIVN_BS!$A$14:$A$54,0),MATCH(RIVN_DCF!F$71,RIVN_BS!$A$14:$G$14,)) -> 2979 | G73: =INDEX(RIVN_BS!$A$14:$G$54,MATCH(RIVN_DCF!$B73,RIVN_BS!$A$14:$A$54,0),MATCH(RIVN_DCF!G$71,RIVN_BS!$A$14:$G$14,)) -> 18133 | H73: =INDEX(RIVN_BS!$A$14:$G$54,MATCH(RIVN_DCF!$B73,RIVN_BS!$A$14:$A$54,0),MATCH(RIVN_DCF!H$71,RIVN_BS!$A$14:$G$14,)) -> 11568 | I73: =INDEX(RIVN_BS!$A$14:$G$54,MATCH(RIVN_DCF!$B73,RIVN_BS!$A$14:$A$54,0),MATCH(RIVN_DCF!I$71,RIVN_BS!$A$14:$G$14,)) -> 7857 | J73: =INDEX(RIVN_BS!$A$14:$G$54,MATCH(RIVN_DCF!$B73,RIVN_BS!$A$14:$A$54,0),MATCH(RIVN_DCF!J$71,RIVN_BS!$A$14:$G$14,)) -> 5294
B74: Short-term Investments | F74: =INDEX(RIVN_BS!$A$14:$G$54,MATCH(RIVN_DCF!$B74,RIVN_BS!$A$14:$A$54,0),MATCH(RIVN_DCF!F$71,RIVN_BS!$A$14:$G$14,)) -> 0 | G74: =INDEX(RIVN_BS!$A$14:$G$54,MATCH(RIVN_DCF!$B74,RIVN_BS!$A$14:$A$54,0),MATCH(RIVN_DCF!G$71,RIVN_BS!$A$14:$G$14,)) -> 0 | H74: =INDEX(RIVN_BS!$A$14:$G$54,MATCH(RIVN_DCF!$B74,RIVN_BS!$A$14:$A$54,0),MATCH(RIVN_DCF!H$71,RIVN_BS!$A$14:$G$14,)) -> 0 | I74: =INDEX(RIVN_BS!$A$14:$G$54,MATCH(RIVN_DCF!$B74,RIVN_BS!$A$14:$A$54,0),MATCH(RIVN_DCF!I$71,RIVN_BS!$A$14:$G$14,)) -> 1511 | J74: =INDEX(RIVN_BS!$A$14:$G$54,MATCH(RIVN_DCF!$B74,RIVN_BS!$A$14:$A$54,0),MATCH(RIVN_DCF!J$71,RIVN_BS!$A$14:$G$14,)) -> 2406
B75: Total non-cash current assets | F75: =F72-F73-F74 -> 37 | G75: =G72-G73-G74 -> 426 | H75: 1562 | I75: 2945 | J75: 2883
B77: Total Current Liabilities | F77: =INDEX(RIVN_BS!$A$14:$G$54,MATCH(RIVN_DCF!$B77,RIVN_BS!$A$14:$A$54,0),MATCH(RIVN_DCF!F$71,RIVN_BS!$A$14:$G$14,)) -> 611 | G77: =INDEX(RIVN_BS!$A$14:$G$54,MATCH(RIVN_DCF!$B77,RIVN_BS!$A$14:$A$54,0),MATCH(RIVN_DCF!G$71,RIVN_BS!$A$14:$G$14,)) -> 1313 | H77: =INDEX(RIVN_BS!$A$14:$G$54,MATCH(RIVN_DCF!$B77,RIVN_BS!$A$14:$A$54,0),MATCH(RIVN_DCF!H$71,RIVN_BS!$A$14:$G$14,)) -> 2424 | I77: =INDEX(RIVN_BS!$A$14:$G$54,MATCH(RIVN_DCF!$B77,RIVN_BS!$A$14:$A$54,0),MATCH(RIVN_DCF!I$71,RIVN_BS!$A$14:$G$14,)) -> 2487 | J77: =INDEX(RIVN_BS!$A$14:$G$54,MATCH(RIVN_DCF!$B77,RIVN_BS!$A$14:$A$54,0),MATCH(RIVN_DCF!J$71,RIVN_BS!$A$14:$G$14,)) -> 2251
B78: Current Portion of Long-term Debt | F78: =INDEX(RIVN_BS!$A$14:$G$54,MATCH(RIVN_DCF!$B78,RIVN_BS!$A$14:$A$54,0),MATCH(RIVN_DCF!F$71,RIVN_BS!$A$14:$G$14,)) -> 28 | G78: =INDEX(RIVN_BS!$A$14:$G$54,MATCH(RIVN_DCF!$B78,RIVN_BS!$A$14:$A$54,0),MATCH(RIVN_DCF!G$71,RIVN_BS!$A$14:$G$14,)) -> 0 | H78: =INDEX(RIVN_BS!$A$14:$G$54,MATCH(RIVN_DCF!$B78,RIVN_BS!$A$14:$A$54,0),MATCH(RIVN_DCF!H$71,RIVN_BS!$A$14:$G$14,)) -> 0 | I78: =INDEX(RIVN_BS!$A$14:$G$54,MATCH(RIVN_DCF!$B78,RIVN_BS!$A$14:$A$54,0),MATCH(RIVN_DCF!I$71,RIVN_BS!$A$14:$G$14,)) -> 0 | J78: =INDEX(RIVN_BS!$A$14:$G$54,MATCH(RIVN_DCF!$B78,RIVN_BS!$A$14:$A$54,0),MATCH(RIVN_DCF!J$71,RIVN_BS!$A$14:$G$14,)) -> 0
B79: Current portion of lease liabilities | F79: =INDEX(RIVN_BS!$A$14:$G$54,MATCH(RIVN_DCF!$B79,RIVN_BS!$A$14:$A$54,0),MATCH(RIVN_DCF!F$71,RIVN_BS!$A$14:$G$14,)) -> 18 | G79: =INDEX(RIVN_BS!$A$14:$G$54,MATCH(RIVN_DCF!$B79,RIVN_BS!$A$14:$A$54,0),MATCH(RIVN_DCF!G$71,RIVN_BS!$A$14:$G$14,)) -> 46 | H79: =INDEX(RIVN_BS!$A$14:$G$54,MATCH(RIVN_DCF!$B79,RIVN_BS!$A$14:$A$54,0),MATCH(RIVN_DCF!H$71,RIVN_BS!$A$14:$G$14,)) -> 68 | I79: =INDEX(RIVN_BS!$A$14:$G$54,MATCH(RIVN_DCF!$B79,RIVN_BS!$A$14:$A$54,0),MATCH(RIVN_DCF!I$71,RIVN_BS!$A$14:$G$14,)) -> 88 | J79: =INDEX(RIVN_BS!$A$14:$G$54,MATCH(RIVN_DCF!$B79,RIVN_BS!$A$14:$A$54,0),MATCH(RIVN_DCF!J$71,RIVN_BS!$A$14:$G$14,)) -> 100
B80: Total non-debt current liabilities | F80: =F77-F78-F79 -> 565 | G80: =G77-G78-G79 -> 1267 | H80: 2356 | I80: 2399 | J80: 2151
B82: Non-cash Net Working Capital | F82: =F75-F80 -> -528 | G82: =G75-G80 -> -841 | H82: -794 | I82: 546 | J82: 732 | K82: =K88*K17 -> 755.3238902 | L82: 1154.457598 | M82: 1668.302034 | N82: 2546.580304 | O82: 3280.228366 | P82: 3984.706047 | Q82: 4556.838238 | R82: 5148.449503 | S82: 5770.074308 | T82: 6467.634257 | U82: 7006.893696 | V82: 7505.459671 | W82: 7915.559459
B83: Change in NWC | G83: =G82-F82 -> -313 | H83: =H82-G82 -> 47 | I83: 1340 | J83: 186 | K83: =K82-J82 -> 23.32389018 | L83: =L82-K82 -> 399.1337077 | M83: 513.8444363 | N83: 878.2782696 | O83: 733.6480625 | P83: 704.477681 | Q83: 572.132191 | R83: 591.6112645 | S83: 621.6248048 | T83: 697.5599496 | U83: 539.2594391 | V83: 498.5659744 | W83: 410.0997877
F86: Historical | K86: Projected
F87: =F71 -> 2020 | G87: =F87+1 -> 2021 | H87: 2022 | I87: 2023 | J87: 2024 | K87: 2025 | L87: 2026 | M87: 2027 | N87: 2028 | O87: 2029 | P87: =O87+1 -> 2030 | Q87: =P87+1 -> 2031 | R87: =Q87+1 -> 2032 | S87: =R87+1 -> 2033 | T87: =S87+1 -> 2034 | U87: 2035 | V87: 2036 | W87: 2037
B88: Non-cash NWC as a % of Sale | F88: =IFERROR(F82/F17,"") ->  | G88: =IFERROR(G82/G17,"") -> -15.29090909 | H88: =IFERROR(H82/H17,"") -> -0.4788902292 | I88: =IFERROR(I82/I17,"") -> 0.1231393775 | J88: =IFERROR(J82/J17,"") -> 0.1472837022 | K88: 0.15 | L88: 0.15 | M88: 0.15 | N88: 0.15 | O88: =N88+$AA$88 -> 0.1444444444 | P88: 0.1388888889 | Q88: 0.1333333333 | R88: 0.1277777778 | S88: 0.1222222222 | T88: 0.1166666667 | U88: 0.1111111111 | V88: 0.1055555556 | W88: 0.1 | Y88: Step | Z88: 0.1 | AA88: =(Z88-N88)/(W87-N87) -> -0.005555555556
A91: x | B91: DILUTED SHARES
F94: Treasury with a Twist- All Outstanding Options | K94: Treasury Method- All Outstanding Options
B95: Class A Shares | F95: Basic share count | K95: Basic share count
B96: Class B Shares | F96: Outstanding options | K96: Oustanding options
B97: Voting Premium | C97: 0.05 | F97: Exercise price | K97: Exercise price
F98: Current share price
F99: In-the-money options
F100: Total proceeds | K100: Total proceeds
F101: Total shares repurchased
F102: Unvested RSUs | K102: Unvested RSUs
F103: Diluted shares outstanding | K103: Diluted shares outstanding
A106: x | B106: WACC
F108: Current
B109: Percent of Capital
B110: Total debt | F110: =RIVN_BS!G40+RIVN_BS!G43+RIVN_BS!G42-Convertible_Debt!C3-Convertible_Debt!C14+Convertible_Debt!C10+Convertible_Debt!C21 -> 4551.544807
B111: Share price | F111: =C4 -> 14.68
B112: Shares outstanding | F112: =I103 -> 0 | G112: ***Note: Will update this with diluted shares.
B113: Market value of equity | F113: =F112*F111+Convertible_Debt!C11+Convertible_Debt!C22 -> 95.0126935
B115: Weight of debt | F115: =F110/(F113+F110) -> 0.9795520246
B116: Weight of equity | F116: =F113/(F110+F113) -> 0.02044797541
B118: Cost of debt
B119: Default Spread | F119: 0.03
B120: Pre-tax cost of debt | F120: =F119+F124 -> 0.0716
B121: Marginal tax rate | F121: =C26 -> 0.25
B123: Cost of equity
B124: Risk-free rate | F124: 0.0416
B125: Market risk premium (Rm - Rf) | F125: 0.0581
B126: Beta | F126: =D147 -> 34.27713328
B127: Cost of equity | F127: =F124+F125*F126 -> 2.033101444
B129: Weighted average cost of capital | F129: =F115*F120*(1-F121)+F116*F127 -> 0.09417475204
A131: x | B131: BOTTOM UP BETA
E134: MV | F134: Book Value | G134: Debt/ | H134: Reg | I134: Unlevered | K134: Marginal
B135: Company | C135: Ticker | E135: Equity | F135: Debt | G135: Equity | H135: Beta | I135: Beta | K135: Tax Rate
B136: Tesla, Inc. | C136: TSLA | E136: 1440089.6 | F136: 13134 | G136: =F136/E136 -> 0.00912026585 | H136: 2.09 | I136: =H136/(1+G136*(1-K136)) -> 2.075801107 | K136: 0.25
B137: General Motors Company | C137: GM | E137: 54516 | F137: 135362 | G137: =F137/E137 -> 2.482977475 | H137: 1.34 | I137: =H137/(1+G137*(1-K137)) -> 0.4681659217 | K137: =$K$136 -> 0.25
B138: Lucid Group, Inc. | C138: LCID | E138: 6762.6 | F138: 2507.64 | G138: 0.3708100435 | H138: 0.82 | I138: 0.6415735602 | K138: =$K$136 -> 0.25
B139: Ford Motor Company | C139: F | E139: 47439.9 | F139: 159326 | G139: 3.358480941 | H139: 1.54 | I139: 0.4376416485 | K139: 0.25
B140: THOR Industries, Inc. | C140: THOR | E140: 5318.6 | F140: 967.04 | G140: 0.1818222841 | H140: 1.35 | I140: 1.187996784 | K140: 0.25
B141: Winnebago Industries, Inc. | C141: WGO | E141: 842.6 | F141: 580.9 | G141: 0.6894137194 | H141: 1.15 | I141: 0.7580450216 | K141: 0.25
B143: Average unlevered beta | D143: =AVERAGE(I136:I141) -> 0.928204007
B144: Average unlevered beta (Full industry) | D144: 1.39
B145: =C3&" Debt/Equity ratio" -> RIVN Debt/Equity ratio | D145: =F110/F113 -> 47.90459715
B146: =C3&" Tax Rate" -> RIVN Tax Rate | D146: =C26 -> 0.25
B147: =C3&" Levered Beta" -> RIVN Levered Beta | D147: =D143*(1+D145*(1-D146)) -> 34.27713328
A149: x | B149: SENSITIVITY ANALYSIS
B153: Beta Step
D157: Beta
B166: Exit Multiple Step
H167: Exit Multiple
B172: WACC Step
B173: Terminal Growth Rate Step
H174: WACC
B180: Terminal Growth Rate

Sheet RIVN_Forecast
B2: Key Metrics (Annual)
B3: Dollars in millions | D3: Actual | H3: Projected
D4: 2021 | E4: 2022 | F4: 2023 | G4: 2024 | H4: 2025 | I4: 2026 | J4: 2027 | K4: 2028 | L4: 2029 | M4: 2030 | N4: 2031 | O4: 2032 | P4: 2033 | Q4: 2034
B5: Production | D5: 1015 | E5: 24337 | F5: 57232 | G5: 49476
B6: Delivery | D6: 920 | E6: 20332 | F6: 50122 | G6: 51579 | H6: 44000 | I6: =I7+I9+I11 -> 81800 | J6: =J7+J9+J11 -> 121070 | K6: =K7+K9+K11+K16 -> 162154.5 | L6: 190160.555 | M6: 216226.0143 | N6: 244748.6157 | O6: 269223.4772 | P6: 296145.825 | Q6: 325760.4075
B7: R1 | F7: =F6-F9 -> 43332 | G7: =G6-G9 -> 40361 | H7: =H6-H9 -> 32000 | I7: 35000 | J7: =I7*(1+J8) -> 39200 | K7: 43904 | L7: 49172.48 | M7: 54089.728 | N7: 59498.7008 | O7: 65448.57088 | P7: 71993.42797 | Q7: 79192.77076
B8: R1 Growth | J8: 0.12 | K8: 0.12 | L8: 0.12 | M8: 0.1 | N8: 0.1 | O8: 0.1 | P8: 0.1 | Q8: 0.1
B9: RCV or EDV | F9: =SUM(G58:J58) -> 6790 | G9: =SUM(K58:N58) -> 11218 | H9: 12000 | I9: =H9*(1+I10) -> 13800 | J9: 15870 | K9: 18250.5 | L9: 20988.075 | M9: 24136.28625 | N9: 26549.91487 | O9: 29204.90636 | P9: 32125.397 | Q9: 35337.9367
B10: RCV Growth | G10: =G9/F9-1 -> 0.6521354934 | H10: =H9/G9-1 -> 0.06970939561 | I10: 0.15 | J10: 0.15 | K10: 0.15 | L10: 0.15 | M10: 0.15 | N10: 0.1 | O10: 0.1 | P10: 0.1 | Q10: 0.1
B11: R2 | I11: 33000 | J11: 66000 | K11: 100000 | L11: =K11*(1+L12) -> 120000 | M11: 138000 | N11: 158700 | O11: 174570 | P11: 192027 | Q11: 211229.7
B12: R2 Growth | L12: 0.2 | M12: 0.15 | N12: 0.15 | O12: 0.1 | P12: 0.1 | Q12: 0.1
B13: R3 | K13: 33000 | L13: 66000 | M13: 100000 | N13: =M13*(1+N14) -> 115000 | O13: =N13*(1+O14) -> 132250 | P13: =O13*(1+P14) -> 145475 | Q13: =P13*(1+Q14) -> 160022.5
M14: 0.2 | N14: 0.15 | O14: 0.15 | P14: 0.1 | Q14: 0.1
B15: Price Increases | C15: 0.03
B20: Rev per R1 | G20: =C91/1000000 -> 0.086 | H20: =G20 -> 0.086 | I20: =H20*(1+$C$15) -> 0.08858 | J20: 0.0912374 | K20: 0.093974522 | L20: 0.09679375766 | M20: 0.09969757039 | N20: 0.1026884975 | O20: 0.1057691524 | P20: 0.108942227 | Q20: 0.1122104938
B21: Rev per RCV | G21: =C92/1000000 -> 0.0607910501 | H21: =G21 -> 0.0607910501 | I21: =H21*(1+$C$15) -> 0.0626147816 | J21: 0.06449322505 | K21: 0.0664280218 | L21: 0.06842086245 | M21: 0.07047348833 | N21: 0.07258769298 | O21: 0.07476532377 | P21: 0.07700828348 | Q21: 0.07931853198
B22: Rev Per R2 | I22: 0.05 | J22: =I22*(1+$C$15) -> 0.0515 | K22: 0.053045 | L22: 0.05463635 | M22: 0.0562754405 | N22: 0.05796370372 | O22: 0.05970261483 | P22: 0.06149369327 | Q22: 0.06333850407
B23: Rev per R3 | K23: 0.05 | L23: =K23*(1+$C$15) -> 0.0515 | M23: =L23*(1+$C$15) -> 0.053045 | N23: 0.05463635 | O23: 0.0562754405 | P23: =O23*(1+$C$15) -> 0.05796370372 | Q23: 0.05970261483
H25: =H26/G26-1 -> -0.1869164955 | I25: =I26/H26-1 -> 0.5392447909 | J25: 0.4247357468 | K25: 0.5367772452 | L25: 0.3138668188 | M25: 0.2484754423 | N25: 0.1663826712 | O25: 0.14675837 | P25: 0.133 | Q25: 0.133
B26: Revenues: Automotive | D26: 0 | E26: 1554 | F26: 4132 | G26: 4486 | H26: =H9*H21+(H6-H9)*H20+H44 -> 3647.492601 | I26: =I7*I20+I9*I21+I11*I22 -> 5614.383986 | J26: =J7*J20+J9*J21+J11*J22 -> 7999.013562 | K26: =K7*K20+K9*K21+K11*K22+K13*K23 -> 12292.70203 | L26: 16150.97331 | M26: 20164.09354 | N26: 23519.04929 | O26: 26970.66663 | P26: 30557.76529 | Q26: 34621.94807
B27: Revenues: Software Service | D27: - | E27: 104 | F27: 302 | G27: 484 | H27: =694*2 -> 1388 | I27: =H27*(1+I33) -> 2082 | J27: 3123 | K27: 4684.5 | L27: 6558.3 | M27: 8525.79 | N27: 10657.2375 | O27: =N27*(1+O33) -> 13321.54688 | P27: 16651.93359 | Q27: 20814.91699
B28: Total Revenues | D28: 55 | E28: 1658 | F28: 4434 | G28: 4970 | H28: =H27+H26 -> 5035.492601 | I28: 7696.383986 | J28: 11122.01356 | K28: 16977.20203 | L28: 22709.27331 | M28: 28689.88354 | N28: 34176.28679 | O28: =O27+O26 -> 40292.2135 | P28: 47209.69888 | Q28: 55436.86506
B30: % Automotive | E30: =E26/E$28 -> 0.9372738239 | F30: =F26/F$28 -> 0.9318899414 | G30: 0.9026156942 | H30: 0.7243566598 | I30: 0.7294833517 | J30: 0.7192055213 | K30: 0.7240711401 | L30: 0.7112060826 | M30: 0.7028293967 | N30: =N26/N$28 -> 0.6881686543 | O30: 0.6693766433 | P30: 0.6472772759 | Q30: 0.6245293278
B31: % Software | E31: =E27/E$28 -> 0.06272617612 | F31: =F27/F$28 -> 0.06811005864 | G31: 0.09738430584 | H31: 0.2756433402 | I31: 0.2705166483 | J31: 0.2807944787 | K31: 0.2759288599 | L31: 0.2887939174 | M31: 0.2971706033 | N31: =N27/N$28 -> 0.3118313457 | O31: 0.3306233567 | P31: 0.3527227241 | Q31: 0.3754706722
B33: Software | F33: =F27/E27-1 -> 1.903846154 | G33: =G27/F27-1 -> 0.6026490066 | H33: =H27/G27-1 -> 1.867768595 | I33: 0.5 | J33: 0.5 | K33: 0.5 | L33: 0.4 | M33: 0.3 | N33: 0.25 | O33: 0.25 | P33: 0.25 | Q33: 0.25
B34: Non VW growth | H34: =(H27-349*2)/G27-1 -> 0.4256198347
B36: Revenue/Vehicle | D36: =D28/D6*1000000 -> 59782.6087 | E36: =(E26-E44)/E6*1000000 -> 76431.24139 | F36: =(F26-F44)/F6*1000000 -> 80982.40294 | G36: 80517.26478 | H36: =(H26-H44)/H6*1000000 -> 79124.83184 | I36: =(I26-I44)/I6*1000000 -> 68635.50105 | J36: 66069.32817 | K36: 75808.57778 | L36: 84933.35174 | M36: 93254.70671 | N36: 96094.71834 | O36: =(O26-O44)/O6*1000000 -> 100179.4751 | P36: 103184.8593 | Q36: 106280.4051
B39: Guidance (at beginning of year)
B40: Production | E40: 25000 | F40: 57000 | G40: 47000-49000
B41: Delivery | G41: 50500-52000
E43: 2022 | F43: 2023 | G43: 2024 | H43: 2025
B44: Regulatory credits | E44: 0 | F44: 73 | G44: 333 | H44: 166 | I44: 0 | J44: 0 | K44: 0
B46: Revenue Projection (CAPIQ) | H46: 5285.1 | I46: 7022.88 | J46: 11307.93 | K46: 20094.37 | L46: 28320.94 | M46: 37384.86 | N46: 42189.2 | O46: 49914.9 | P46: 56179 | Q46: 59490.85
B47: Growth (%) | I47: =I46/H46-1 -> 0.3288074019 | J47: =J46/I46-1 -> 0.6101556626 | K47: 0.7770157757 | L47: 0.4093967614 | M47: 0.3200430494 | N47: 0.1285103114 | O47: 0.1831203246 | P47: 0.1254955935 | Q47: 0.05895174353
B48: EBITDA | H48: -2130.59 | I48: -1760.91 | J48: -785.29 | K48: 762.93 | L48: 1777.95
B50: Quarterly
C51: 2022Q1 | D51: 2022Q2 | E51: 2022Q3 | F51: 2022Q4 | G51: 2023Q1 | H51: 2023Q2 | I51: 2023Q3 | J51: 2023Q4 | K51: 2024Q1 | L51: 2024Q2 | M51: 2024Q3 | N51: 2024Q4 | O51: 2025Q1 | P51: 2025Q2
B52: Production | C52: 2553 | D52: 4401 | E52: 7363 | F52: 10020 | G52: 9395 | H52: 13992 | I52: 16304 | J52: 17541 | K52: 13980 | L52: 9612 | M52: 13157 | N52: 12727 | O52: 14611 | P52: 5979
B53: Delivery | C53: 1227 | D53: 4467 | E53: 6584 | F53: 8054 | G53: 7946 | H53: 12640 | I53: 15564 | J53: 13972 | K53: 13588 | L53: 13790 | M53: 10018 | N53: 14183 | O53: 8640 | P53: 10661
B54: Y-o-Y | G54: =G52/C52-1 -> 2.679984332 | H54: =H52/D52-1 -> 2.179277437 | I54: 1.214314817 | J54: 0.7505988024 | K54: 0.4880255455 | L54: -0.3130360206 | M54: -0.1930201178 | N54: -0.2744427342 | O54: 0.04513590844 | P54: -0.3779650437
B55: Y-o-Y | G55: =G53/C53-1 -> 5.47595762 | H55: =H53/D53-1 -> 1.829639579 | I55: 1.363912515 | J55: 0.7347901664 | K55: 0.7100427888 | L55: 0.09098101266 | M55: -0.3563351324 | N55: 0.01510163184 | O55: -0.3641448337 | P55: -0.2269035533
B57: Estimated split of R1S and R1T and RSV (generated by ChatGPT)
B58: RCV | C58: 0 | D58: 0 | E58: 0 | F58: 0 | G58: 397 | H58: 1264 | I58: 2335 | J58: 2794 | K58: 2718 | L58: 3034 | M58: 2204 | N58: 3262 | O58: 2074 | P58: 2665
B59: R1S | C59: 25 | D59: 223 | E59: 527 | F59: 966 | G59: 3774 | H59: 5460 | I59: 5953 | J59: 5589 | K59: 5652 | L59: 5378 | M59: 3751 | N59: 5460 | O59: 3283 | P59: 3998
B60: R1T | C60: 1202 | D60: 4244 | E60: 6057 | F60: 7088 | G60: 3775 | H60: 5916 | I60: 7276 | J60: 5589 | K60: 5218 | L60: 5378 | M60: 4063 | N60: 5461 | O60: 3283 | P60: 3998
B62: Guidance for 2025
B63: As of | C63: 2024Q4 | D63: 2025Q1 | E63: 2025Q2
B64: Delivery | C64: 46000-51000 | D64: 40000-46000 | E64: 40000-46000
B65: EBITDA | C65: (1700)-(1900) | D65: (1700)-(1900) | E65: (2000-2520)
B66: Capex | C66: 1600-1700 | D66: 1800-1900 | E66: 1800-1900
B69: Normal Factory | C69: 2025 | D69: 2026 | E69: 2027 | F69: 2028 | G69: 2029
B70: Annual Production | C70: 150000 | D70: 215000 | E70: 215000 | F70: 215000 | G70: 215000
B71: R1 | C71: 85000 | D71: 85000 | E71: 85000 | F71: 85000 | G71: 85000
B72: RCV | C72: 65000 | D72: 65000 | E72: 65000 | F72: 65000 | G72: 65000
B73: R2 | D73: 155000 | E73: 155000 | F73: 155000 | G73: 155000
D74: **Does not total as these are up to.
B76: Georgia Factory ***R2 and R3 models
B77: Phase 1 | F77: 200000
B78: Phase 2 | G78: 400000
B80: Total capacity | C80: =C78+C77+C70 -> 150000 | D80: 215000 | E80: 215000 | F80: =F78+F77+F70 -> 415000 | G80: 615000
B82: RCV orders | C82: Ordered | D82: Delivered | E82: Remaining
B83: Amazon | C83: 100000 | D83: 20000 | E83: 80000
B84: Hello Fresh/Factor | C84: 70
B85: AT&T | C85: Pilot program
B90: Average Price
B91: R1 | C91: 86000
B92: RCV | C92: =(G26-G44-G20*(G6-G9))/G9*1000000 -> 60791.0501
B93: R2 | C93: 50000
B95: Midsize SUV Models sold in 2024
D96: 2024 | E96: RS2 Market | F96: Projected
C97: Tesla Model Y | D97: 313699 | E97: 0.05 | F97: =E97*D97 -> 15684.95
C98: Toyota RAV4 | D98: 248295 | E98: 0.01 | F98: =E98*D98 -> 2482.95
C99: Honda CR-V | D99: 196204 | E99: 0.01 | F99: 1962.04
C100: Nissan Rogue | D100: 141160 | E100: 0.01 | F100: 1411.6
C101: Chevrolet Equinox | D101: 107468 | E101: 0.01 | F101: 1074.68
C102: Jeep Grand Cherokee | D102: 106751 | E102: 0.01 | F102: 1067.51
C103: Ford Explorer | D103: 104803 | E103: 0.01 | F103: 1048.03
C104: Subaru Forester | D104: 92849 | E104: 0.01 | F104: 928.49
C105: Hyundai Tucson | D105: 92146 | E105: 0.01 | F105: 921.46
C106: Chevrolet Trax | D106: 90463 | E106: 0.01 | F106: 904.63
C107: Subaru Outback | D107: 81703 | E107: 0.01 | F107: 817.03
C108: Kia Sportage | D108: 79853 | E108: 0.01 | F108: 798.53
C109: Subaru Crosstrek | D109: 79500 | E109: 0.01 | F109: 795
C110: Jeep Wrangler | D110: 77204 | E110: 0.01 | F110: 772.04
C111: Honda HR-V | D111: 76263 | E111: 0.01 | F111: 762.63
C112: Ford Escape | D112: 74538 | E112: 0.01 | F112: 745.38
C113: Mazda CX-5 | D113: 70214 | E113: 0.01 | F113: 702.14
D114: =SUM(D97:D113) -> 2033113 | F114: =SUM(F97:F113) -> 32879.09

Sheet RIVN_Forecast_Scenario
B2: Key Metrics (Annual)
B3: Dollars in millions | D3: Actual | H3: Projected
D4: 2021 | E4: 2022 | F4: 2023 | G4: 2024 | H4: 2025 | I4: 2026 | J4: 2027 | K4: 2028 | L4: 2029 | M4: 2030 | N4: 2031 | O4: 2032 | P4: 2033 | Q4: 2034
B5: Production | D5: 1015 | E5: 24337 | F5: 57232 | G5: 49476
B6: Delivery | D6: 920 | E6: 20332 | F6: 50122 | G6: 51579 | H6: 44000 | I6: =I7+I9+I11 -> 63200 | J6: =J7+J9+J11 -> 82320 | K6: =K7+K9+K11+K16 -> 106796 | L6: 116659.12 | M6: 127443.2336 | N6: 139235.2147 | O6: 152130.2065 | P6: 166232.4151 | Q6: 181655.9797
B7: R1 | F7: =F6-F9 -> 43332 | G7: =G6-G9 -> 40361 | H7: =H6-H9 -> 32000 | I7: 35000 | J7: =I7*(1+J8) -> 37800 | K7: 40824 | L7: 44089.92 | M7: 47617.1136 | N7: 51426.48269 | O7: 55540.6013 | P7: 59983.84941 | Q7: 64782.55736
B8: R1 Growth | J8: 0.08 | K8: 0.08 | L8: 0.08 | M8: 0.08 | N8: 0.08 | O8: 0.08 | P8: 0.08 | Q8: 0.08
B9: RCV or EDV | F9: =SUM(G58:J58) -> 6790 | G9: =SUM(K58:N58) -> 11218 | H9: 12000 | I9: =H9*(1+I10) -> 13200 | J9: 14520 | K9: 15972 | L9: 17569.2 | M9: 19326.12 | N9: 21258.732 | O9: 23384.6052 | P9: 25723.06572 | Q9: 28295.37229
B10: RCV Growth | G10: =G9/F9-1 -> 0.6521354934 | H10: =H9/G9-1 -> 0.06970939561 | I10: 0.1 | J10: 0.1 | K10: 0.1 | L10: 0.1 | M10: 0.1 | N10: 0.1 | O10: 0.1 | P10: 0.1 | Q10: 0.1
B11: R2 | I11: 15000 | J11: 30000 | K11: 50000 | L11: =K11*(1+L12) -> 55000 | M11: 60500 | N11: 66550 | O11: 73205 | P11: 80525.5 | Q11: 88578.05
B12: R2 Growth | L12: 0.1 | M12: 0.1 | N12: 0.1 | O12: 0.1 | P12: 0.1 | Q12: 0.1
B13: R3 | K13: 15000 | L13: 30000 | M13: 50000 | N13: =M13*(1+N14) -> 55000 | O13: =N13*(1+O14) -> 60500 | P13: =O13*(1+P14) -> 66550 | Q13: =P13*(1+Q14) -> 73205
M14: 0.1 | N14: 0.1 | O14: 0.1 | P14: 0.1 | Q14: 0.1
B15: Price Increases | C15: 0.03
B20: Rev per R1 | G20: =C91/1000000 -> 0.086 | H20: =G20 -> 0.086 | I20: =H20*(1+$C$15) -> 0.08858 | J20: 0.0912374 | K20: 0.093974522 | L20: 0.09679375766 | M20: 0.09969757039 | N20: 0.1026884975 | O20: 0.1057691524 | P20: 0.108942227 | Q20: 0.1122104938
B21: Rev per RCV | G21: =C92/1000000 -> 0.0607910501 | H21: =G21 -> 0.0607910501 | I21: 0.0626147816 | J21: 0.06449322505 | K21: 0.0664280218 | L21: 0.06842086245 | M21: 0.07047348833 | N21: 0.07258769298 | O21: 0.07476532377 | P21: 0.07700828348 | Q21: 0.07931853198
B22: Rev Per R2 | I22: 0.05 | J22: 0.0515 | K22: 0.053045 | L22: 0.05463635 | M22: 0.0562754405 | N22: 0.05796370372 | O22: 0.05970261483 | P22: 0.06149369327 | Q22: 0.06333850407
B23: Rev per R3 | K23: 0.05 | L23: =K23*(1+$C$15) -> 0.0515 | M23: 0.053045 | N23: 0.05463635 | O23: 0.0562754405 | P23: 0.05796370372 | Q23: 0.05970261483
H25: =H26/G26-1 -> -0.1869164955 | I25: =I26/H26-1 -> 0.2822000285 | J25: 0.2680029463 | K25: 0.399553602 | L25: 0.2072464462 | M25: 0.2142249428 | N25: 0.1249617821 | O25: 0.1250515401 | P25: 0.1251409229 | Q25: 0.1252299179
B26: Revenues: Automotive | D26: 0 | E26: 1554 | F26: 4132 | G26: 4486 | H26: =H9*H21+(H6-H9)*H20+H44 -> 3647.492601 | I26: =I7*I20+I9*I21+I11*I22 -> 4676.815117 | J26: =J7*J20+J9*J21+J11*J22 -> 5930.215348 | K26: =K7*K20+K9*K21+K11*K22+K13*K23 -> 8299.65425 | L26: 10019.7281 | M26: 12166.20378 | N26: 13686.51428 | O26: 15398.03397 | P26: 17324.95816 | Q26: 19494.56124
B27: Revenues: Software Service | D27: - | E27: 104 | F27: 302 | G27: 484 | H27: =694*2 -> 1388 | I27: =H27*(1+I33) -> 2082 | J27: 2914.8 | K27: 3789.24 | L27: 4547.088 | M27: 5456.5056 | N27: 6547.80672 | O27: 7857.368064 | P27: 9428.841677 | Q27: 11314.61001
B28: Total Revenues | D28: 55 | E28: 1658 | F28: 4434 | G28: 4970 | H28: =H27+H26 -> 5035.492601 | I28: 6758.815117 | J28: 8845.015348 | K28: 12088.89425 | L28: 14566.8161 | M28: 17622.70938 | N28: 20234.321 | O28: 23255.40204 | P28: 26753.79983 | Q28: 30809.17125
B30: % Automotive | E30: =E26/E$28 -> 0.9372738239 | F30: =F26/F$28 -> 0.9318899414 | G30: 0.9026156942 | H30: 0.7243566598 | I30: 0.6919578411 | J30: 0.6704584576 | K30: 0.6865519772 | L30: 0.6878461313 | M30: 0.690370789 | N30: 0.6764009665 | O30: 0.6621271887 | P30: 0.6475699999 | Q30: 0.6327518868
B31: % Software | E31: =E27/E$28 -> 0.06272617612 | F31: 0.06811005864 | G31: 0.09738430584 | H31: 0.2756433402 | I31: 0.3080421589 | J31: 0.3295415424 | K31: 0.3134480228 | L31: 0.3121538687 | M31: 0.309629211 | N31: 0.3235990335 | O31: 0.3378728113 | P31: 0.3524300001 | Q31: 0.3672481132
B33: Software | F33: =F27/E27-1 -> 1.903846154 | G33: =G27/F27-1 -> 0.6026490066 | H33: =H27/G27-1 -> 1.867768595 | I33: 0.5 | J33: 0.4 | K33: 0.3 | L33: 0.2 | M33: 0.2 | N33: 0.2 | O33: 0.2 | P33: 0.2 | Q33: 0.2
B34: Non VW growth | H34: =(H27-349*2)/G27-1 -> 0.4256198347
B36: Revenue/Vehicle | D36: =D28/D6*1000000 -> 59782.6087 | E36: =(E26-E44)/E6*1000000 -> 76431.24139 | F36: =(F26-F44)/F6*1000000 -> 80982.40294 | G36: 80517.26478 | H36: =(H26-H44)/H6*1000000 -> 79124.83184 | I36: =(I26-I44)/I6*1000000 -> 74000.2392 | J36: 72038.57322 | K36: 77715.02912 | L36: 85888.93949 | M36: 95463.70909 | N36: 98297.79279 | O36: 101216.1511 | P36: 104221.2985 | Q36: 107315.8246
B39: Guidance (at beginning of year)
B40: Production | E40: 25000 | F40: 57000 | G40: 47000-49000
B41: Delivery | G41: 50500-52000
E43: 2022 | F43: 2023 | G43: 2024 | H43: 2025
B44: Regulatory credits | E44: 0 | F44: 73 | G44: 333 | H44: 166 | I44: 0 | J44: 0 | K44: 0
B46: Revenue Projection (CAPIQ) | H46: 5285.1 | I46: 7022.88 | J46: 11307.93 | K46: 20094.37 | L46: 28320.94 | M46: 37384.86 | N46: 42189.2 | O46: 49914.9 | P46: 56179 | Q46: 59490.85
B47: Growth (%) | I47: =I46/H46-1 -> 0.3288074019 | J47: =J46/I46-1 -> 0.6101556626 | K47: 0.7770157757 | L47: 0.4093967614 | M47: 0.3200430494 | N47: 0.1285103114 | O47: 0.1831203246 | P47: 0.1254955935 | Q47: 0.05895174353
B48: EBITDA | H48: -2130.59 | I48: -1760.91 | J48: -785.29 | K48: 762.93 | L48: 1777.95
B50: Quarterly
C51: 2022Q1 | D51: 2022Q2 | E51: 2022Q3 | F51: 2022Q4 | G51: 2023Q1 | H51: 2023Q2 | I51: 2023Q3 | J51: 2023Q4 | K51: 2024Q1 | L51: 2024Q2 | M51: 2024Q3 | N51: 2024Q4 | O51: 2025Q1 | P51: 2025Q2
B52: Production | C52: 2553 | D52: 4401 | E52: 7363 | F52: 10020 | G52: 9395 | H52: 13992 | I52: 16304 | J52: 17541 | K52: 13980 | L52: 9612 | M52: 13157 | N52: 12727 | O52: 14611 | P52: 5979
B53: Delivery | C53: 1227 | D53: 4467 | E53: 6584 | F53: 8054 | G53: 7946 | H53: 12640 | I53: 15564 | J53: 13972 | K53: 13588 | L53: 13790 | M53: 10018 | N53: 14183 | O53: 8640 | P53: 10661
B54: Y-o-Y | G54: =G52/C52-1 -> 2.679984332 | H54: =H52/D52-1 -> 2.179277437 | I54: 1.214314817 | J54: 0.7505988024 | K54: 0.4880255455 | L54: -0.3130360206 | M54: -0.1930201178 | N54: -0.2744427342 | O54: 0.04513590844 | P54: -0.3779650437
B55: Y-o-Y | G55: =G53/C53-1 -> 5.47595762 | H55: 1.829639579 | I55: 1.363912515 | J55: 0.7347901664 | K55: 0.7100427888 | L55: 0.09098101266 | M55: -0.3563351324 | N55: 0.01510163184 | O55: -0.3641448337 | P55: -0.2269035533
B57: Estimated split of R1S and R1T and RSV (generated by ChatGPT)
B58: RCV | C58: 0 | D58: 0 | E58: 0 | F58: 0 | G58: 397 | H58: 1264 | I58: 2335 | J58: 2794 | K58: 2718 | L58: 3034 | M58: 2204 | N58: 3262 | O58: 2074 | P58: 2665
B59: R1S | C59: 25 | D59: 223 | E59: 527 | F59: 966 | G59: 3774 | H59: 5460 | I59: 5953 | J59: 5589 | K59: 5652 | L59: 5378 | M59: 3751 | N59: 5460 | O59: 3283 | P59: 3998
B60: R1T | C60: 1202 | D60: 4244 | E60: 6057 | F60: 7088 | G60: 3775 | H60: 5916 | I60: 7276 | J60: 5589 | K60: 5218 | L60: 5378 | M60: 4063 | N60: 5461 | O60: 3283 | P60: 3998
B62: Guidance for 2025
B63: As of | C63: 2024Q4 | D63: 2025Q1 | E63: 2025Q2
B64: Delivery | C64: 46000-51000 | D64: 40000-46000 | E64: 40000-46000
B65: EBITDA | C65: (1700)-(1900) | D65: (1700)-(1900) | E65: (2000-2520)
B66: Capex | C66: 1600-1700 | D66: 1800-1900 | E66: 1800-1900
B69: Normal Factory | C69: 2025 | D69: 2026 | E69: 2027 | F69: 2028 | G69: 2029
B70: Annual Production | C70: 150000 | D70: 215000 | E70: 215000 | F70: 215000 | G70: 215000
B71: R1 | C71: 85000 | D71: 85000 | E71: 85000 | F71: 85000 | G71: 85000
B72: RCV | C72: 65000 | D72: 65000 | E72: 65000 | F72: 65000 | G72: 65000
B73: R2 | D73: 155000 | E73: 155000 | F73: 155000 | G73: 155000
D74: **Does not total as these are up to.
B76: Georgia Factory ***R2 and R3 models
B77: Phase 1 | F77: 200000
B78: Phase 2 | G78: 400000
B80: Total capacity | C80: =C78+C77+C70 -> 150000 | D80: 215000 | E80: 215000 | F80: =F78+F77+F70 -> 415000 | G80: 615000
B82: RCV orders | C82: Ordered | D82: Delivered | E82: Remaining
B83: Amazon | C83: 100000 | D83: 20000 | E83: 80000
B84: Hello Fresh/Factor | C84: 70
B85: AT&T | C85: Pilot program
B90: Average Price
B91: R1 | C91: 86000
B92: RCV | C92: =(G26-G44-G20*(G6-G9))/G9*1000000 -> 60791.0501
B93: R2 | C93: 50000
B95: Midsize SUV Models sold in 2024
D96: 2024 | E96: RS2 Market | F96: Projected
C97: Tesla Model Y | D97: 313699 | E97: 0.05 | F97: =E97*D97 -> 15684.95
C98: Toyota RAV4 | D98: 248295 | E98: 0.01 | F98: =E98*D98 -> 2482.95
C99: Honda CR-V | D99: 196204 | E99: 0.01 | F99: 1962.04
C100: Nissan Rogue | D100: 141160 | E100: 0.01 | F100: 1411.6
C101: Chevrolet Equinox | D101: 107468 | E101: 0.01 | F101: 1074.68
C102: Jeep Grand Cherokee | D102: 106751 | E102: 0.01 | F102: 1067.51
C103: Ford Explorer | D103: 104803 | E103: 0.01 | F103: 1048.03
C104: Subaru Forester | D104: 92849 | E104: 0.01 | F104: 928.49
C105: Hyundai Tucson | D105: 92146 | E105: 0.01 | F105: 921.46
C106: Chevrolet Trax | D106: 90463 | E106: 0.01 | F106: 904.63
C107: Subaru Outback | D107: 81703 | E107: 0.01 | F107: 817.03
C108: Kia Sportage | D108: 79853 | E108: 0.01 | F108: 798.53
C109: Subaru Crosstrek | D109: 79500 | E109: 0.01 | F109: 795
C110: Jeep Wrangler | D110: 77204 | E110: 0.01 | F110: 772.04
C111: Honda HR-V | D111: 76263 | E111: 0.01 | F111: 762.63
C112: Ford Escape | D112: 74538 | E112: 0.01 | F112: 745.38
C113: Mazda CX-5 | D113: 70214 | E113: 0.01 | F113: 702.14
D114: =SUM(D97:D113) -> 2033113 | F114: =SUM(F97:F113) -> 32879.09

Sheet RIVN_Comps
B2: =RIVN_DCF!C2&"Valuation with Public Comparables" -> Rivian AutomotiveValuation with Public Comparables
B3: =RIVN_DCF!B8 -> Fiscal year ends in December USD in millions except per share data.
B4: Valuation for period ended
B5: Ticker | C5: =RIVN_DCF!C3 -> RIVN
B6: Valuation Date
B7: Company Name | C7: =RIVN_DCF!C2 -> Rivian Automotive | H7: Enterprise Value Multiples | N7: Equity Value Multiples
F8: Market Value | G8: Enterprise | K8: Forward | L8: 5 year growth | M8: BV | N8: Forward | O8: Forward | P8: Price(Market)- | Q8: Cash/MS as
B9: Company | C9: Ticker | D9: Share price | F9: of Equity | G9: Value | H9: EV/Sales | I9: EV/EBIT | J9: EV/EBITDA | K9: EPS | L9: rate | M9: Equity | N9: P/E | O9: PEG | P9: to-Book | Q9: % of TA
B10: =RIVN_DCF!C2 -> Rivian Automotive | C10: =C5 -> RIVN | D10: =RIVN_DCF!C4 -> 14.68
G19: High
G20: Mean
G21: Median
G22: Low
D25: Implied price per share | E25: Diluted shares outstanding | F25: Implied Equity Value | G25: Implied Enterprise Value | H25: Range of EV/Sales | I25: Range of EV/EBIT | J25: Range of EV/EBITDA | N25: Range of Forward P/E | O25: Range of Forward PEG | P25: Range of Price-to-Book | Q25: Excess Cash
B26: =RIVN_DCF!C2 -> Rivian Automotive

Sheet Option_Value
B2: Valuing Options or Warrants
B3: Enter the current stock price = | E3: =RIVN_DCF!S54 -> 0
B4: Enter the strike price on the option =
B5: Enter the expiration of the option =
B6: Enter the standard deviation in stock prices = | F6: (volatility)
B7: Enter the annualized dividend yield on stock =
B8: Enter the treasury bond rate =
B9: Enter the number of options outstanding =
B10: Enter the number of shares outstanding = | E10: =RIVN_DCF!F112 -> 0
B12: Circuit Breaker | C12: OFF
B14: Do not input any numbers below this line
B15: VALUING WARRANTS WHEN THERE IS DILUTION
B16: Stock Price= | D16: =E3 -> 0 | E16: # Warrants issued= | G16: =E9 -> 0
B17: Strike Price= | D17: =E4 -> 0 | E17: # Shares outstanding= | G17: =E10 -> 0
B18: Adjusted S = | D18: =(D16*G17+D29*G16)/(G17+G16) ->  | E18: T.Bond rate= | G18: =E8 -> 0
B19: Adjusted K = | D19: =D17 -> 0 | E19: Variance= | G19: =E6^2 -> 0
B20: Expiration (in years) = | D20: =E5 -> 0 | E20: Annualized dividend yield= | G20: =E7 -> 0
E21: Div. Adj. interest rate= | G21: =G18-G20 -> 0
B23: d1 = | C23: =(LN(D18/D19)+(G21+(G19/2))*D20)/(((G19)^(0.5))*(D20^0.5)) -> 
B24: N (d1) = | C24: =NORMSDIST(C23) -> 
B26: d2 = | C26: =C23-((G19^0.5)*(D20^(0.5))) -> 
B27: N (d2) = | C27: =NORMSDIST(C26) -> 
B29: Value per option = | D29: =IF(C12="OFF",((EXP((0-G20)*D20))*D18*C24-D19*(EXP((0-G18)*D20))*C27),0) -> 
B30: Value of all options outstanding = | E30: =D29*E9 -> 

Sheet Warrant_Value
B2: Valuing Options or Warrants
B3: Enter the current stock price = | E3: =RIVN_DCF!H63 -> 0
B4: Enter the strike price on the option = | E4: 6.84
B5: Enter the expiration of the option = | E5: 4
B6: Enter the standard deviation in stock prices = | E6: 0.625 | F6: (volatility)
B7: Enter the annualized dividend yield on stock = | E7: 0
B8: Enter the treasury bond rate = | E8: =RIVN_DCF!F124 -> 0.0416
B9: Enter the number of options outstanding = | E9: 12
B10: Enter the number of shares outstanding = | E10: =RIVN_DCF!F112 -> 0
B12: Circuit Breaker | C12: ON
B14: Do not input any numbers below this line
B15: VALUING WARRANTS WHEN THERE IS DILUTION
B16: Stock Price= | D16: =E3 -> 0 | E16: # Warrants issued= | G16: =E9 -> 12
B17: Strike Price= | D17: =E4 -> 6.84 | E17: # Shares outstanding= | G17: =E10 -> 0
B18: Adjusted S = | D18: =(D16*G17+D29*G16)/(G17+G16) -> 0 | E18: T.Bond rate= | G18: =E8 -> 0.0416
B19: Adjusted K = | D19: =D17 -> 6.84 | E19: Variance= | G19: =E6^2 -> 0.390625
B20: Expiration (in years) = | D20: =E5 -> 4 | E20: Annualized dividend yield= | G20: =E7 -> 0
E21: Div. Adj. interest rate= | G21: =G18-G20 -> 0.0416
B23: d1 = | C23: =(LN(D18/D19)+(G21+(G19/2))*D20)/(((G19)^(0.5))*(D20^0.5)) -> 
B24: N (d1) = | C24: =NORMSDIST(C23) -> 
B26: d2 = | C26: =C23-((G19^0.5)*(D20^(0.5))) -> 
B27: N (d2) = | C27: =NORMSDIST(C26) -> 
B29: Value per option = | D29: =IF(C12="OFF",((EXP((0-G20)*D20))*D18*C24-D19*(EXP((0-G18)*D20))*C27),0) -> 0
B30: Value of all options outstanding = | E30: =D29*E9 -> 0

Sheet Convertible_Debt
B2: 2029 Green Convertible Debt
B3: Face Value | C3: 1500
B4: Coupon Rate | C4: 0.04625
B5: Last trade price | C5: 98.25
B6: Market Value of Debt | C6: =C3*C5/100 -> 1473.75
B7: Cost of debt | C7: =RIVN_DCF!F120 -> 0.0716
B8: Time to Maturity | C8: 3.5
B9: Frequency | C9: 2
B10: Value of straight debt | C10: =-PV(C7/C9,C8*C9,C3*C4/C9,C3) -> 1384.09352
B11: Value of Equity Portion | C11: =C6-C10 -> 89.6564805
B13: 2030 Green Convertible Debt
B14: Face Value | C14: 1725
B15: Coupon Rate | C15: 0.03625
B16: Last trade price | C16: 85.67
B17: Market Value of Debt | C17: =C14*C16/100 -> 1477.8075
B18: Cost of debt | C18: =RIVN_DCF!F120 -> 0.0716
B19: Time to Maturity | C19: 5
B20: Frequency | C20: 2
B21: Value of straight debt | C21: =-PV(C18/C20,C19*C20,C14*C15/C20,C14) -> 1472.451287
B22: Value of Equity Portion | C22: =C17-C21 -> 5.356213

Sheet RIVN_IS
A5: Rivian Automotive, Inc. (NasdaqGS:RIVN) > Financials > Income Statement
B7: Template: | C7: As Presented | E7: Restatement: | F7: Latest Filings
B8: Period Type: | C8: Annual | E8: Order: | F8: Latest on Right
B9: Currency: | C9: Reported Currency | E9: Conversion: | F9: Historical
B10: Units: | C10: S&P Capital IQ (Default) | E10: Decimals: | F10: Capital IQ (Default)
B11: Source: | C11: Capital IQ & Proprietary Data
A14: Income Statement | B14: 2019 | C14: 2020 | D14: 2021 | E14: 2022 | F14: 2023 | G14: 2024
A15: For the Fiscal Period Ending | B15: 12 months Dec-31-2019 | C15: 12 months Dec-31-2020 | D15: 12 months Dec-31-2021 | E15: 12 months Dec-31-2022 | F15: 12 months Dec-31-2023 | G15: 12 months Dec-31-2024
A16: Currency | B16: USD | C16: USD | D16: USD | E16: USD | F16: USD | G16: USD
A17: Units | B17: Millions | C17: Millions | D17: Millions | E17: Millions | F17: Millions | G17: Millions
A18: Revenues
A19: Revenues: Automotive | B19: - | C19: - | E19: 1554 | F19: 4132 | G19: 4486
A20: Revenues: Software Service | B20: - | C20: - | D20: - | E20: 104 | F20: 302 | G20: 484
A21: Revenues | B21: - | C21: - | D21: 55 | E21: - | F21: - | G21: -
A22: Total Revenues | D22: =D21 -> 55 | E22: 1658 | F22: 4434 | G22: 4970
A24: Expenses | B24: =0*(-1) -> 0 | C24: 0 | D24: 0 | E24: 0 | F24: 0 | G24: 0
A25: Cost of Revenues | B25: =0*(-1) -> 0 | C25: 0 | D25: =-520*(-1) -> 520 | E25: =0*(-1) -> 0 | F25: =0*(-1) -> 0 | G25: =0*(-1) -> 0
A26: Cost of Revenues: Software Service | B26: 0 | C26: 0 | D26: =0*(-1) -> 0 | E26: =-115*(-1) -> 115 | F26: =-314*(-1) -> 314 | G26: =-477*(-1) -> 477
A27: Cost of Revenues: Automotive | B27: 0 | C27: 0 | D27: =-520*(-1) -> 520 | E27: =-4666*(-1) -> 4666 | F27: =-6150*(-1) -> 6150 | G27: =-5693*(-1) -> 5693
A28: Selling, General and Administrative | B28: =-108*(-1) -> 108 | C28: =-255*(-1) -> 255 | D28: =-1242*(-1) -> 1242 | E28: =-1789*(-1) -> 1789 | F28: =-1714*(-1) -> 1714 | G28: =-1876*(-1) -> 1876
A29: Research and Development | B29: =-301*(-1) -> 301 | C29: =-766*(-1) -> 766 | D29: =-1850*(-1) -> 1850 | E29: =-1944*(-1) -> 1944 | F29: =-1995*(-1) -> 1995 | G29: =-1613*(-1) -> 1613
A30: Other Expenses | B30: - | C30: - | D30: =-663*(-1) -> 663 | E30: - | F30: - | G30: -
A31: Interest Expense | B31: =-34*(-1) -> 34 | C31: =-8*(-1) -> 8 | D31: =-29*(-1) -> 29 | E31: =-103*(-1) -> 103 | F31: =-220*(-1) -> 220 | G31: =-318*(-1) -> 318
A32: Interest Income | B32: 18 | C32: 10 | D32: 3 | E32: 193 | F32: 522 | G32: 385
A33: Other Income/expense-net | B33: -1 | C33: 1 | D33: -1 | E33: 18 | F33: 6 | G33: -7
A34: Loss on Convertible Notes, Net | B34: - | C34: - | D34: -441 | E34: - | F34: - | G34: -112
A35: Earnings before Taxes | B35: -426 | C35: -1018 | D35: -4688 | E35: -6748 | F35: -5431 | G35: -4741
A37: Taxes and Other Expenses
A38: Provision for Income Tax | B38: - | C38: - | D38: - | E38: -4 | F38: -1 | G38: -5
A39: Minority Interest (After Tax) | B39: - | C39: - | D39: - | E39: - | F39: - | G39: -1
A40: Net Income (Loss) | B40: -426 | C40: -1018 | D40: -4688 | E40: -6752 | F40: -5432 | G40: -4747
A42: Charges on Net Income
A43: Premiums on Preferred Stock Redemption | B43: - | C43: -1 | D43: - | E43: - | F43: - | G43: -
A44: Net Income Available to Common Shareholders | B44: -426 | C44: -1019 | D44: - | E44: - | F44: - | G44: -
A46: Supplementary Info
A47: Gross Profit/loss | B47: - | C47: - | D47: -465 | E47: -3123 | F47: -2030 | G47: -1200
A48: Operating Income (Loss) | B48: -409 | C48: -1021 | D48: -4220 | E48: -6856 | F48: -5739 | G48: -4689
A49: Basic EPS - Continuing Operations | B49: -4.35 | C49: -10.09 | D49: -22.98 | E49: -7.4 | F49: -5.74 | G49: -4.69
A50: Diluted EPS - Continuing Operations | B50: -4.35 | C50: -10.09 | D50: -22.98 | E50: -7.4 | F50: -5.74 | G50: -4.69
A52: Note: For multiple class companies, per share items are primary class equivalent, and for foreign companies listed as primary ADRs, per share items are ADR-equivalent.
A54: Depreciation and amortization | B54: 7 | C54: 29 | D54: 197 | E54: 652 | F54: 937 | G54: 1031
A55: Capex | B55: -199 | C55: -914 | D55: -1794 | E55: -1369 | F55: -1026 | G55: -1141

Sheet RIVN_BS
A5: Rivian Automotive, Inc. (NasdaqGS:RIVN) > Financials > Balance Sheet
B7: Template: | C7: As Presented | E7: Restatement: | F7: Latest Filings
B8: Period Type: | C8: Annual | E8: Order: | F8: Latest on Right
B9: Currency: | C9: Reported Currency | E9: Conversion: | F9: Historical
B10: Units: | C10: S&P Capital IQ (Default) | E10: Decimals: | F10: Capital IQ (Default)
B11: Source: | C11: Capital IQ & Proprietary Data
A14: Balance Sheet | B14: 2019 | C14: 2020 | D14: 2021 | E14: 2022 | F14: 2023 | G14: 2024
A15: Balance Sheet as of: | B15: 2019-12-31 | C15: 2020-12-31 | D15: 2021-12-31 | E15: 2022-12-31 | F15: 2023-12-31 | G15: 2024-12-31
A16: Currency | B16: USD | C16: USD | D16: USD | E16: USD | F16: USD | G16: USD
A17: Units | B17: Millions | C17: Millions | D17: Millions | E17: Millions | F17: Millions | G17: Millions
A18: Current Assets
A19: Cash and Cash Equivalents | B19: 2264 | C19: 2979 | D19: 18133 | E19: 11568 | F19: 7857 | G19: 5294
A20: Short-term Investments | F20: 1511 | G20: 2406
A21: Accounts Receivable, Net | B21: - | C21: 6 | D21: 26 | E21: 102 | F21: 161 | G21: 443
A22: Inventory | D22: 274 | E22: 1348 | F22: 2620 | G22: 2248
A23: Other Current Assets | B23: 29 | C23: 31 | D23: 126 | E23: 112 | F23: 164 | G23: 192
A24: Total Current Assets | B24: 2293 | C24: 3016 | D24: 18559 | E24: 13130 | F24: 12313 | G24: 10583
A26: Non Current Assets
A27: Operating Lease Assets – Net | C27: 80 | D27: 228 | E27: 330 | F27: 356 | G27: 416
A28: Property, Plant and Equipment, Net | B28: 313 | C28: 1445 | D28: 3183 | E28: 3758 | F28: 3874 | G28: 3965
A29: Other Non-current Assets | B29: 27 | C29: 61 | D29: 324 | E29: 658 | F29: 235 | G29: 446
A30: Total Assets | B30: 2633 | C30: 4602 | D30: 22294 | E30: 17876 | F30: 16778 | G30: 15410
A32: Current Liabilities
A33: Accounts Payable | B33: 27 | C33: 90 | D33: 483 | E33: 1000 | F33: 981 | G33: 499
A34: Accrued Liabilities | B34: 137 | C34: 443 | D34: 667 | E34: 1154 | F34: 1145 | G34: 835
A35: Current Portion of Long-term Debt | C35: 28
A36: Customer Deposits | B36: 18 | C36: 28
A37: Current portion of lease liabilities and other Current liabilities | B37: 3 | C37: 22 | D37: 163 | E37: 270
A38: Current portion of deferred revenues, lease liabilities, and other liabilities | B38: - | C38: - | D38: - | E38: - | F38: 361 | G38: 917
A39: Total Current Liabilities | B39: 185 | C39: 611 | D39: 1313 | E39: 2424 | F39: 2487 | G39: 2251
A40: Current portion of lease liabilities | C40: 18 | D40: 46 | E40: 68 | F40: 88 | G40: 100
A41: Non Current Liabilities
A42: Noncurrent Portion of Long-term Debt | B42: 71 | C42: 47 | D42: 1226 | E42: 1231 | F42: 4431 | G42: 4441
A43: Non Current Lease Liabilities | B43: - | C43: 83 | D43: 218 | E43: 311 | F43: 324 | G43: 379
A44: Minority Interest | B44: - | C44: - | D44: - | E44: - | F44: - | G44: 4
A45: Preferred Stock Convertible | B45: 2750 | C45: 5244 | D45: - | E45: - | F45: - | G45: -
A46: Other Non-current Liabilities | B46: 2 | C46: 1 | D46: 23 | E46: 111 | F46: 395 | G46: 1777
A48: Shareholders' Equity
A49: Common Stock - Par Value | B49: - | C49: - | D49: 1 | E49: 1 | F49: 1 | G49: 1
A50: Additional Paid in Capital | B50: 293 | C50: 302 | D50: 25887 | E50: 26926 | F50: 27695 | G50: 29866
A51: Accumulated Deficit | B51: -668 | C51: -1686 | D51: -6374 | E51: -13126 | F51: -18558 | G51: -23305
A52: Accumulated Other Comprehensive Income (Loss) | B52: - | C52: - | D52: - | E52: -2 | F52: 3 | G52: -4
A53: Total Shareholders Equity | B53: -375 | C53: -1384 | D53: 19514 | E53: 13799 | F53: 9141 | G53: 6558
A54: Total Liabilities & Shareholders Equity | B54: 2633 | C54: 4602 | D54: 22294 | E54: 17876 | F54: 16778 | G54: 15410
A56: Note: For multiple class companies, total share counts are primary class equivalent, and for foreign companies listed as primary ADRs, total share counts are ADR-equivalent.

Sheet RIVN_CFS
A5: Rivian Automotive, Inc. (NasdaqGS:RIVN) > Financials > Cash Flow
B7: Template: | C7: As Presented | E7: Restatement: | F7: Latest Filings
B8: Period Type: | C8: Annual | E8: Order: | F8: Latest on Right
B9: Currency: | C9: Reported Currency | E9: Conversion: | F9: Historical
B10: Units: | C10: S&P Capital IQ (Default) | E10: Decimals: | F10: Capital IQ (Default)
B11: Source: | C11: Capital IQ & Proprietary Data
A14: Cash Flow
A15: For the Fiscal Period Ending | B15: 12 months Dec-31-2019 | C15: 12 months Dec-31-2020 | D15: 12 months Dec-31-2021 | E15: 12 months Dec-31-2022 | F15: 12 months Dec-31-2023 | G15: 12 months Dec-31-2024
A16: Currency | B16: USD | C16: USD | D16: USD | E16: USD | F16: USD | G16: USD
A17: Units | B17: Millions | C17: Millions | D17: Millions | E17: Millions | F17: Millions | G17: Millions
A18: Operating Activities
A19: Net Income | B19: -426 | C19: -1018 | D19: -4688 | E19: -6752 | F19: -5432 | G19: -4746
A20: Depreciation and Amortization | B20: 7 | C20: 29 | D20: 197 | E20: 652 | F20: 937 | G20: 1031
A21: Stock Based Compenation Expense | B21: - | C21: - | D21: 570 | E21: 987 | F21: 821 | G21: 692
A22: Inventory LCNRV write-downs and losses on firm purchase Commitments | B22: - | C22: - | D22: 95 | E22: 920 | F22: 107 | G22: -
A23: Other Non-current Assets | B23: -5 | C23: -8 | D23: -8 | E23: - | F23: - | G23: -
A24: Other Non-current Liabilities | B24: -14 | C24: -1 | D24: 18 | E24: - | F24: - | G24: -
A25: Other Expenses | B25: - | C25: - | D25: 643 | E25: - | F25: - | G25: -
A26: Other Non-cash Activities | B26: 37 | C26: 41 | D26: 36 | E26: 82 | F26: 115 | G26: 28
A27: Loss on Convertible Notes, Net | B27: - | C27: - | D27: 441 | E27: - | F27: - | G27: 112
A28: Accounts Receivable | B28: -16 | C28: 11 | D28: -20 | E28: -76 | F28: -59 | G28: -282
A29: Inventory | B29: - | C29: - | D29: -369 | E29: -1657 | F29: -1604 | G29: 307
A30: Accounts Payable and Accrued Liabilities | B30: 43 | C30: 121 | D30: 461 | E30: 623 | F30: 105 | G30: -572
A31: Deferred Revenue | B31: - | C31: - | D31: - | E31: 61 | F31: 149 | G31: 1619
A32: Other Liabilities | B32: 15 | C32: 11 | D32: 83 | E32: 144 | F32: 141 | G32: 316
A33: Customer Deposits | B33: 14 | C33: - | D33: - | E33: - | F33: - | G33: -
A34: Other Current Assets | B34: -8 | C34: -34 | D34: -81 | E34: -36 | F34: -146 | G34: -221
A35: Cash Flow from Operating Activities | B35: -353 | C35: -848 | D35: -2622 | E35: -5052 | F35: -4866 | G35: -1716
A37: Investing Activities
A38: Capital Expenditures | B38: -199 | C38: -914 | D38: -1794 | E38: -1369 | F38: -1026 | G38: -1141
A39: Purchases of Short-term Investment | B39: - | C39: - | D39: - | E39: - | F39: -2410 | G39: -4392
A40: Maturities of Short-term Investments | B40: - | C40: - | D40: - | E40: - | F40: 925 | G40: 3553
A41: Cash Flow from Investing Activities | B41: -199 | C41: -914 | D41: -1794 | E41: -1369 | F41: -2511 | G41: -1980
A43: Financing Activities
A44: Proceeds from Issuance of Convertible Notes | B44: - | C44: - | D44: 2500 | E44: - | F44: 3195 | G44: 1000
A45: Proceeds from Issuance of Long - Term Debt, Net of Discount and Debt Issuance Costs | B45: 61 | C45: - | D45: 1226 | E45: - | F45: - | G45: -
A46: Proceeds from Issuances of Capital Stock | B46: 2750 | C46: 2506 | D46: 2658 | E46: 102 | F46: 61 | G46: 64
A47: Proceeds from Share Issuance Upon Initial Public Offering, Net of Underwriting Discounts and Commissions and Offering Costs | B47: - | C47: - | D47: 13530 | E47: - | F47: - | G47: -
A48: Other Financing Activities | B48: - | C48: - | D48: -86 | E48: -3 | F48: -18 | G48: -7
A49: Purchase of Capped Call Option | B49: - | C49: - | D49: - | E49: - | F49: -108 | G49: -
A50: Principal Payments and Other Financing Activities | B50: - | C50: -6 | D50: - | E50: - | F50: - | G50: -
A51: Proceeds from funding of 50% interest in Rivian and VW Group Technology, LLC | B51: - | C51: - | D51: - | E51: - | F51: - | G51: 79
A52: Cash Flow from Financing Activities | B52: 2811 | C52: 2500 | D52: 19828 | E52: 99 | F52: 3130 | G52: 1136
A54: Other Adjustments
A55: Foreign Exchange Rate Effect on Cash and Cash Equivalents | B55: - | C55: - | D55: - | E55: -2 | F55: 5 | G55: -3
A56: Cash Flow Net Changes in Cash | B56: 2259 | C56: 738 | D56: 15412 | E56: -6324 | F56: -4242 | G56: -2563
